[Event "Late-Titled-Tuesday-Blitz-January-16-2024"]
[Site "Chess.com"]
[Date "2024.01.16"]
[Round "1"]
[White "Elsa167"]
[Black "Cheer_Down"]
[Result "1-0"]
[WhiteElo "2850"]
[BlackElo "2458"]
[TimeControl "180+1"]
[EndTime "14:09:25 PST"]
[Termination "Elsa167 won on time"]

1. d4 {[%clk 0:03:00.9]} 1... Nf6 {[%clk 0:02:57.7]} 2. c4 {[%clk 0:03:01.1]}
2... e6 {[%clk 0:02:57.4]} 3. Nf3 {[%clk 0:03:01.3]} 3... d5 {[%clk 0:02:56.7]}
4. Nc3 {[%clk 0:03:01.9]} 4... Be7 {[%clk 0:02:55.8]} 5. g3 {[%clk 0:03:01.7]}
5... O-O {[%clk 0:02:49.5]} 6. Bg2 {[%clk 0:03:01.7]} 6... dxc4 {[%clk
0:02:49.7]} 7. Ne5 {[%clk 0:03:01.5]} 7... Nc6 {[%clk 0:02:49.3]} 8. Bxc6 {[%clk
0:03:00.5]} 8... bxc6 {[%clk 0:02:49.5]} 9. Nxc6 {[%clk 0:03:01.1]} 9... Qe8
{[%clk 0:02:50.2]} 10. Nxe7+ {[%clk 0:03:00.9]} 10... Qxe7 {[%clk 0:02:51.1]}
11. Qa4 {[%clk 0:03:00.5]} 11... c5 {[%clk 0:02:48.4]} 12. dxc5 {[%clk
0:03:00.3]} 12... Qxc5 {[%clk 0:02:48.2]} 13. Be3 {[%clk 0:02:59.7]} 13... Qc7
{[%clk 0:02:48.3]} 14. f3 {[%clk 0:02:57.3]} 14... Rb8 {[%clk 0:02:38.6]} 15.
Qa3 {[%clk 0:02:25]} 15... a5 {[%clk 0:02:33.6]} 16. Rd1 {[%clk 0:02:08.7]}
16... Rd8 {[%clk 0:02:19.5]} 17. Kf2 {[%clk 0:02:02.6]} 17... Nd5 {[%clk
0:02:19.3]} 18. Nxd5 {[%clk 0:02:00.2]} 18... Rxd5 {[%clk 0:02:18.7]} 19. Qc3
{[%clk 0:01:30.1]} 19... Rb4 {[%clk 0:02:09.7]} 20. Bd4 {[%clk 0:01:26]} 20...
f6 {[%clk 0:02:08.4]} 21. e4 {[%clk 0:01:16.4]} 21... Rd7 {[%clk 0:02:04.1]} 22.
Qe3 {[%clk 0:01:09.8]} 22... e5 {[%clk 0:01:46.3]} 23. Bc3 {[%clk 0:01:09.4]}
23... Rb8 {[%clk 0:01:40.8]} 24. Rxd7 {[%clk 0:01:08]} 24... Bxd7 {[%clk
0:01:40.5]} 25. Rd1 {[%clk 0:01:07]} 25... Be6 {[%clk 0:01:39.1]} 26. Qd2 {[%clk
0:01:04.7]} 26... Kf7 {[%clk 0:01:35.4]} 27. Bxa5 {[%clk 0:00:54.5]} 27... Qa7+
{[%clk 0:01:30.1]} 28. Kg2 {[%clk 0:00:53.8]} 28... Ra8 {[%clk 0:01:30.2]} 29.
Bc3 {[%clk 0:00:47.6]} 29... Qxa2 {[%clk 0:01:29.9]} 30. f4 {[%clk 0:00:47]}
30... exf4 {[%clk 0:01:07.2]} 31. gxf4 {[%clk 0:00:47.1]} 31... Kg8 {[%clk
0:01:07.8]} 32. f5 {[%clk 0:00:45.1]} 32... Bf7 {[%clk 0:01:08]} 33. Rg1 {[%clk
0:00:23.7]} 33... Qa6 {[%clk 0:01:05.3]} 34. Kh1 {[%clk 0:00:19.5]} 34... Qc6
{[%clk 0:00:59.4]} 35. Qg2 {[%clk 0:00:19]} 35... g6 {[%clk 0:00:59.6]} 36. h3
{[%clk 0:00:12.4]} 36... Re8 {[%clk 0:00:58.8]} 37. Re1 {[%clk 0:00:08.5]} 37...
Kf8 {[%clk 0:00:48.6]} 38. fxg6 {[%clk 0:00:08.4]} 38... Bxg6 {[%clk 0:00:46]}
39. e5 {[%clk 0:00:06.9]} 39... Qxg2+ {[%clk 0:00:44.8]} 40. Kxg2 {[%clk
0:00:07.8]} 40... fxe5 {[%clk 0:00:44.9]} 41. Bxe5 {[%clk 0:00:07.7]} 41... Kf7
{[%clk 0:00:43.6]} 42. Kg3 {[%clk 0:00:07.8]} 42... Re6 {[%clk 0:00:40.1]} 43.
Kf4 {[%clk 0:00:05.1]} 43... Re8 {[%clk 0:00:38.8]} 44. Ra1 {[%clk 0:00:04.7]}
44... Ke6 {[%clk 0:00:36.8]} 45. Bc3 {[%clk 0:00:03.5]} 45... Rf8+ {[%clk
0:00:36.6]} 46. Kg3 {[%clk 0:00:03.5]} 46... Be4 {[%clk 0:00:34.9]} 47. h4
{[%clk 0:00:03.7]} 47... Rf3+ {[%clk 0:00:34.7]} 48. Kg4 {[%clk 0:00:04.4]}
48... Rf2 {[%clk 0:00:34]} 49. Ra6+ {[%clk 0:00:04.4]} 49... Kd5 {[%clk
0:00:32.9]} 50. Ra5+ {[%clk 0:00:04.9]} 50... Kc6 {[%clk 0:00:33]} 51. h5 {[%clk
0:00:04.5]} 51... Bd3 {[%clk 0:00:31.7]} 52. Ra6+ {[%clk 0:00:04]} 52... Kd5
{[%clk 0:00:31.5]} 53. h6 {[%clk 0:00:03.8]} 53... Rg2+ {[%clk 0:00:31.2]} 54.
Kf3 {[%clk 0:00:03.8]} 54... Rh2 {[%clk 0:00:30.6]} 55. Ra5+ {[%clk 0:00:03.2]}
55... Kc6 {[%clk 0:00:30.1]} 56. Bg7 {[%clk 0:00:03.8]} 56... Rh1 {[%clk
0:00:28.3]} 57. Ke3 {[%clk 0:00:04.1]} 57... Rh3+ {[%clk 0:00:27.9]} 58. Kd4
{[%clk 0:00:03.6]} 58... Rh4+ {[%clk 0:00:28.2]} 59. Kc3 {[%clk 0:00:03.7]}
59... Rh2 {[%clk 0:00:27.4]} 60. b4 {[%clk 0:00:02.9]} 60... Rc2+ {[%clk
0:00:24.8]} 61. Kd4 {[%clk 0:00:03.3]} 61... Rc1 {[%clk 0:00:23.6]} 62. Rc5+
{[%clk 0:00:02.2]} 62... Kb7 {[%clk 0:00:22.4]} 63. Kd5 {[%clk 0:00:02]} 63...
Re1 {[%clk 0:00:21.1]} 64. Kd4 {[%clk 0:00:02.4]} 64... Rd1 {[%clk 0:00:20.9]}
65. Ke5 {[%clk 0:00:02.7]} 65... Re1+ {[%clk 0:00:21]} 66. Kd6 {[%clk
0:00:02.8]} 66... Bf5 {[%clk 0:00:19.2]} 67. Rxc4 {[%clk 0:00:02.7]} 67... Re6+
{[%clk 0:00:18.4]} 68. Kd5 {[%clk 0:00:03.1]} 68... Rg6 {[%clk 0:00:16.4]} 69.
Rc5 {[%clk 0:00:03.4]} 69... Be6+ {[%clk 0:00:16.4]} 70. Ke5 {[%clk 0:00:03.9]}
70... Bb3 {[%clk 0:00:15.2]} 71. Rc3 {[%clk 0:00:03.6]} 71... Ba2 {[%clk
0:00:14.1]} 72. Ra3 {[%clk 0:00:03.6]} 72... Bb1 {[%clk 0:00:13.6]} 73. Rf3
{[%clk 0:00:03.7]} 73... Rg5+ {[%clk 0:00:12.8]} 74. Kd4 {[%clk 0:00:04.2]}
74... Rg4+ {[%clk 0:00:13]} 75. Kc3 {[%clk 0:00:04.1]} 75... Ba2 {[%clk
0:00:12.9]} 76. Bd4 {[%clk 0:00:03.4]} 76... Bb1 {[%clk 0:00:12]} 77. Rf7+
{[%clk 0:00:03.1]} 77... Kc6 {[%clk 0:00:12.2]} 78. Rf6+ {[%clk 0:00:03.7]}
78... Kb7 {[%clk 0:00:12.7]} 79. b5 {[%clk 0:00:03.3]} 79... Bg6 {[%clk
0:00:11.1]} 80. Re6 {[%clk 0:00:03.7]} 80... Bf5 {[%clk 0:00:11]} 81. Re7+
{[%clk 0:00:03.7]} 81... Kc8 {[%clk 0:00:10.6]} 82. Kc4 {[%clk 0:00:03.9]} 82...
Rg2 {[%clk 0:00:08.9]} 83. b6 {[%clk 0:00:03.9]} 83... Rg6 {[%clk 0:00:07.5]}
84. b7+ {[%clk 0:00:03.8]} 84... Kb8 {[%clk 0:00:04]} 85. Be5+ {[%clk
0:00:03.7]} 85... Ka7 {[%clk 0:00:04.5]} 86. b8=Q+ {[%clk 0:00:03.7]} 1-0

[Event "Late-Titled-Tuesday-Blitz-January-16-2024"]
[Site "Chess.com"]
[Date "2024.01.16"]
[Round "1"]
[White "enriquetejedor"]
[Black "drdaro"]
[Result "1-0"]
[WhiteElo "2734"]
[BlackElo "2409"]
[TimeControl "180+1"]
[EndTime "14:09:34 PST"]
[Termination "enriquetejedor won on time"]

1. c3 {[%clk 0:02:49.8]} 1... g6 {[%clk 0:02:58.6]} 2. e4 {[%clk 0:02:46.3]}
2... d6 {[%clk 0:02:59.5]} 3. d4 {[%clk 0:02:45.6]} 3... Bg7 {[%clk 0:03:00]} 4.
Bc4 {[%clk 0:02:41.1]} 4... Nf6 {[%clk 0:02:57.4]} 5. Nd2 {[%clk 0:02:38]} 5...
O-O {[%clk 0:02:56.8]} 6. Ne2 {[%clk 0:02:30.5]} 6... e5 {[%clk 0:02:55.6]} 7.
O-O {[%clk 0:02:25.6]} 7... Qe7 {[%clk 0:02:51]} 8. Re1 {[%clk 0:02:18.8]} 8...
c6 {[%clk 0:02:49.5]} 9. h3 {[%clk 0:02:09.9]} 9... Nbd7 {[%clk 0:02:43.4]} 10.
a4 {[%clk 0:02:06.6]} 10... Rd8 {[%clk 0:02:43.2]} 11. Ng3 {[%clk 0:02:04.7]}
11... Nf8 {[%clk 0:02:42.5]} 12. Nf3 {[%clk 0:01:55]} 12... Be6 {[%clk
0:02:37.5]} 13. d5 {[%clk 0:01:50.2]} 13... cxd5 {[%clk 0:02:33.6]} 14. exd5
{[%clk 0:01:42.7]} 14... Bd7 {[%clk 0:02:33.7]} 15. a5 {[%clk 0:01:39.3]} 15...
Rdc8 {[%clk 0:02:29.2]} 16. Bb3 {[%clk 0:01:34.6]} 16... Ne8 {[%clk 0:02:21.4]}
17. Nd4 {[%clk 0:01:20.7]} 17... Qh4 {[%clk 0:02:13]} 18. Nf3 {[%clk 0:01:13.9]}
18... Qe7 {[%clk 0:02:13.1]} 19. Nd4 {[%clk 0:01:13.7]} 19... Qh4 {[%clk
0:02:09.2]} 20. a6 {[%clk 0:01:12.4]} 20... b6 {[%clk 0:02:03.1]} 21. Nc6 {[%clk
0:01:06.6]} 21... Rc7 {[%clk 0:01:15.6]} 22. Re4 {[%clk 0:00:56.8]} 22... Qf6
{[%clk 0:01:13.3]} 23. Ba4 {[%clk 0:00:50.2]} 23... Rac8 {[%clk 0:01:11.6]} 24.
Re1 {[%clk 0:00:36.3]} 24... Bxc6 {[%clk 0:01:08.8]} 25. Bxc6 {[%clk 0:00:36]}
25... Qe7 {[%clk 0:01:02.8]} 26. Ne4 {[%clk 0:00:29.1]} 26... f5 {[%clk
0:01:01.3]} 27. Bg5 {[%clk 0:00:24.8]} 27... Qf7 {[%clk 0:00:57.3]} 28. Bxe8
{[%clk 0:00:24.1]} 28... Qxe8 {[%clk 0:00:48.7]} 29. Nxd6 {[%clk 0:00:22.9]}
29... Qd7 {[%clk 0:00:49.6]} 30. Nxc8 {[%clk 0:00:22.9]} 30... Rxc8 {[%clk
0:00:50.1]} 31. Qb3 {[%clk 0:00:19.4]} 31... Qd6 {[%clk 0:00:45.9]} 32. Rad1
{[%clk 0:00:18.1]} 32... Nd7 {[%clk 0:00:45.9]} 33. Qa2 {[%clk 0:00:16]} 33...
f4 {[%clk 0:00:44]} 34. f3 {[%clk 0:00:13.9]} 34... Rc5 {[%clk 0:00:44.3]} 35.
Bh4 {[%clk 0:00:13.4]} 35... Ra5 {[%clk 0:00:42.8]} 36. Qc4 {[%clk 0:00:12]}
36... Rc5 {[%clk 0:00:37.7]} 37. Qa2 {[%clk 0:00:12.2]} 37... Ra5 {[%clk
0:00:37.6]} 38. Qb3 {[%clk 0:00:12.5]} 38... Rc5 {[%clk 0:00:38.5]} 39. Bf2
{[%clk 0:00:11.7]} 39... Rc8 {[%clk 0:00:35.7]} 40. Qb5 {[%clk 0:00:11.1]} 40...
g5 {[%clk 0:00:30.8]} 41. Rc1 {[%clk 0:00:09.9]} 41... h5 {[%clk 0:00:26.1]} 42.
c4 {[%clk 0:00:10]} 42... Nc5 {[%clk 0:00:25]} 43. Rcd1 {[%clk 0:00:08.6]} 43...
g4 {[%clk 0:00:19.2]} 44. b4 {[%clk 0:00:09.2]} 44... Nb3 {[%clk 0:00:19.2]} 45.
c5 {[%clk 0:00:09]} 45... bxc5 {[%clk 0:00:18.8]} 46. bxc5 {[%clk 0:00:09.9]}
46... Nxc5 {[%clk 0:00:19.2]} 47. Bxc5 {[%clk 0:00:08.8]} 47... Rxc5 {[%clk
0:00:20.1]} 48. Qe8+ {[%clk 0:00:08.4]} 48... Qf8 {[%clk 0:00:14.4]} 49. Qxh5
{[%clk 0:00:09.3]} 49... gxf3 {[%clk 0:00:13.1]} 50. Qxf3 {[%clk 0:00:08.4]}
50... Ra5 {[%clk 0:00:11.2]} 51. d6 {[%clk 0:00:08.1]} 51... Rxa6 {[%clk
0:00:10.7]} 52. d7 {[%clk 0:00:07.9]} 52... Qd8 {[%clk 0:00:11]} 53. Qb3+ {[%clk
0:00:06.7]} 53... Kh8 {[%clk 0:00:09.8]} 54. Qf7 {[%clk 0:00:05.6]} 54... Rf6
{[%clk 0:00:08.2]} 55. Qe8+ {[%clk 0:00:05.4]} 55... Rf8 {[%clk 0:00:08.7]} 56.
Qh5+ {[%clk 0:00:05.4]} 56... Kg8 {[%clk 0:00:08.7]} 57. Rxe5 {[%clk 0:00:05.1]}
57... Bxe5 {[%clk 0:00:08]} 58. Qxe5 {[%clk 0:00:06]} 58... Qb6+ {[%clk
0:00:07.4]} 59. Kh2 {[%clk 0:00:05.2]} 59... Rd8 {[%clk 0:00:08.3]} 60. Qxf4
{[%clk 0:00:03.3]} 60... Qg6 {[%clk 0:00:08.2]} 61. Rd4 {[%clk 0:00:02.6]} 61...
Qe6 {[%clk 0:00:08.2]} 62. Qg4+ {[%clk 0:00:02.7]} 62... Qxg4 {[%clk 0:00:08.2]}
63. Rxg4+ {[%clk 0:00:03.1]} 63... Kf7 {[%clk 0:00:09.1]} 64. Rd4 {[%clk
0:00:03.3]} 64... a5 {[%clk 0:00:09.6]} 65. Rd5 {[%clk 0:00:03.1]} 65... Ke6
{[%clk 0:00:10.1]} 66. Rxa5 {[%clk 0:00:03.1]} 66... Rxd7 {[%clk 0:00:10.7]} 67.
Ra6+ {[%clk 0:00:03.5]} 67... Kf5 {[%clk 0:00:11.3]} 68. Ra1 {[%clk 0:00:03.4]}
68... Rd2 {[%clk 0:00:11.6]} 69. Rf1+ {[%clk 0:00:04]} 69... Kg5 {[%clk
0:00:12]} 70. Rf3 {[%clk 0:00:04.6]} 70... Re2 {[%clk 0:00:12.6]} 71. Rg3+
{[%clk 0:00:05.4]} 71... Kh5 {[%clk 0:00:12.7]} 72. Rg4 {[%clk 0:00:05.9]} 72...
Rf2 {[%clk 0:00:13.2]} 73. Rg3 {[%clk 0:00:06.2]} 73... Re2 {[%clk 0:00:13.5]}
74. Rf3 {[%clk 0:00:06.6]} 74... Rd2 {[%clk 0:00:13.7]} 75. Re3 {[%clk
0:00:06.9]} 75... Rf2 {[%clk 0:00:14]} 76. Rd3 {[%clk 0:00:07.2]} 76... Re2
{[%clk 0:00:14]} 77. Kg3 {[%clk 0:00:07.3]} 77... Kg5 {[%clk 0:00:12.8]} 78.
Rd5+ {[%clk 0:00:07.3]} 78... Kg6 {[%clk 0:00:13.2]} 79. Rd4 {[%clk 0:00:08.2]}
79... Rb2 {[%clk 0:00:13.2]} 80. h4 {[%clk 0:00:07.7]} 80... Kh6 {[%clk
0:00:13.4]} 81. Kh3 {[%clk 0:00:07.9]} 81... Kg6 {[%clk 0:00:12.4]} 82. Rd6+
{[%clk 0:00:07.6]} 82... Kf5 {[%clk 0:00:12.4]} 83. g4+ {[%clk 0:00:06.3]} 83...
Ke5 {[%clk 0:00:11.5]} 84. Rd3 {[%clk 0:00:06.3]} 84... Rb4 {[%clk 0:00:10.3]}
85. Rf3 {[%clk 0:00:05.3]} 85... Rb2 {[%clk 0:00:09.1]} 86. g5 {[%clk
0:00:04.2]} 86... Rb4 {[%clk 0:00:06.8]} 87. Rf6 {[%clk 0:00:04]} 87... Rc4
{[%clk 0:00:05.2]} 88. Kg3 {[%clk 0:00:04.3]} 88... Rd4 {[%clk 0:00:04.8]} 89.
Rf7 {[%clk 0:00:04]} 89... Rb4 {[%clk 0:00:05.3]} 90. Rf8 {[%clk 0:00:04.4]}
90... Ke6 {[%clk 0:00:05.5]} 91. Rf6+ {[%clk 0:00:04.2]} 91... Ke7 {[%clk
0:00:05.9]} 92. Rf1 {[%clk 0:00:05.1]} 92... Ke6 {[%clk 0:00:06.2]} 93. Rf4
{[%clk 0:00:05.4]} 93... Ke7 {[%clk 0:00:06.8]} 94. Rxb4 {[%clk 0:00:05]} 1-0

[Event "Late-Titled-Tuesday-Blitz-January-16-2024"]
[Site "Chess.com"]
[Date "2024.01.16"]
[Round "1"]
[White "Vlad_Lukiianchuk"]
[Black "NovakRatko"]
[Result "1/2-1/2"]
[WhiteElo "2619"]
[BlackElo "2309"]
[TimeControl "180+1"]
[EndTime "14:10:18 PST"]
[Termination "Game drawn - insufficient material"]

1. d4 {[%clk 0:02:58]} 1... d5 {[%clk 0:02:59.6]} 2. c4 {[%clk 0:02:57.3]} 2...
c5 {[%clk 0:02:59.7]} 3. e3 {[%clk 0:02:53]} 3... e6 {[%clk 0:02:57.6]} 4. Nf3
{[%clk 0:02:49.8]} 4... Nf6 {[%clk 0:02:57.3]} 5. Nc3 {[%clk 0:02:46.1]} 5...
Nc6 {[%clk 0:02:56.7]} 6. Be2 {[%clk 0:02:37.1]} 6... dxc4 {[%clk 0:02:55.3]} 7.
Bxc4 {[%clk 0:02:36.9]} 7... cxd4 {[%clk 0:02:55.4]} 8. exd4 {[%clk 0:02:36.7]}
8... Be7 {[%clk 0:02:55.3]} 9. O-O {[%clk 0:02:36]} 9... O-O {[%clk 0:02:54.6]}
10. Bf4 {[%clk 0:02:17.2]} 10... a6 {[%clk 0:02:52.8]} 11. Rc1 {[%clk
0:02:14.5]} 11... Nd5 {[%clk 0:02:51.8]} 12. Bg3 {[%clk 0:02:09.5]} 12... Bf6
{[%clk 0:02:51.3]} 13. Ne4 {[%clk 0:02:03.7]} 13... Bd7 {[%clk 0:02:46.3]} 14.
Nxf6+ {[%clk 0:01:55.3]} 14... Qxf6 {[%clk 0:02:44.4]} 15. Ne5 {[%clk
0:01:53.9]} 15... Nxe5 {[%clk 0:02:34.6]} 16. Bxe5 {[%clk 0:01:48.3]} 16... Qh4
{[%clk 0:02:19.7]} 17. Bxd5 {[%clk 0:01:37.9]} 17... exd5 {[%clk 0:02:19.3]} 18.
Rc7 {[%clk 0:01:37.9]} 18... Bc6 {[%clk 0:02:17.1]} 19. Qf3 {[%clk 0:01:25.7]}
19... Rac8 {[%clk 0:02:13.5]} 20. Re1 {[%clk 0:01:08.5]} 20... Rxc7 {[%clk
0:02:11.4]} 21. Bxc7 {[%clk 0:01:08.5]} 21... Qxd4 {[%clk 0:02:08.8]} 22. Be5
{[%clk 0:01:05.2]} 22... Qh4 {[%clk 0:02:05.2]} 23. Bg3 {[%clk 0:01:03.9]} 23...
Qg5 {[%clk 0:02:03.9]} 24. h4 {[%clk 0:01:00.7]} 24... Qf6 {[%clk 0:01:52.1]}
25. Qxf6 {[%clk 0:00:34.8]} 25... gxf6 {[%clk 0:01:52]} 26. Rd1 {[%clk
0:00:34.9]} 26... Re8 {[%clk 0:01:50.3]} 27. Rd2 {[%clk 0:00:34.1]} 27... h5
{[%clk 0:01:48.1]} 28. Bc7 {[%clk 0:00:31.4]} 28... Re4 {[%clk 0:01:46.3]} 29.
f4 {[%clk 0:00:19.6]} 29... d4 {[%clk 0:01:37.7]} 30. Bb6 {[%clk 0:00:19.5]}
30... Rxf4 {[%clk 0:01:37.2]} 31. Rxd4 {[%clk 0:00:19.7]} 31... Rf5 {[%clk
0:01:28.2]} 32. Rd2 {[%clk 0:00:15.5]} 32... Kg7 {[%clk 0:01:26.4]} 33. Kh2
{[%clk 0:00:15]} 33... Kg6 {[%clk 0:01:24.4]} 34. Be3 {[%clk 0:00:13.8]} 34...
Re5 {[%clk 0:01:20.5]} 35. Bd4 {[%clk 0:00:13.8]} 35... Re4 {[%clk 0:01:19.7]}
36. Bf2 {[%clk 0:00:09.8]} 36... Rg4 {[%clk 0:01:09.9]} 37. Bg3 {[%clk
0:00:08.9]} 37... Ra4 {[%clk 0:01:06.3]} 38. a3 {[%clk 0:00:08.9]} 38... Re4
{[%clk 0:01:06.8]} 39. Rf2 {[%clk 0:00:08.9]} 39... f5 {[%clk 0:01:06]} 40. Bf4
{[%clk 0:00:09]} 40... Re1 {[%clk 0:01:01.1]} 41. Kg3 {[%clk 0:00:08.3]} 41...
Be4 {[%clk 0:01:01]} 42. Rd2 {[%clk 0:00:08.4]} 42... Rg1 {[%clk 0:00:54.9]} 43.
Kh2 {[%clk 0:00:07.7]} 43... Rf1 {[%clk 0:00:51.2]} 44. Kg3 {[%clk 0:00:08]}
44... f6 {[%clk 0:00:41.6]} 45. Rd6 {[%clk 0:00:08.1]} 45... Rg1 {[%clk
0:00:40.1]} 46. Rd2 {[%clk 0:00:07.8]} 46... Rc1 {[%clk 0:00:37.5]} 47. Rd6
{[%clk 0:00:05]} 47... Rc2 {[%clk 0:00:37.3]} 48. Be5 {[%clk 0:00:05]} 48...
Rxg2+ {[%clk 0:00:34.4]} 49. Kf4 {[%clk 0:00:05.6]} 49... Rg4+ {[%clk
0:00:33.6]} 50. Ke3 {[%clk 0:00:06]} 50... Rxh4 {[%clk 0:00:31.6]} 51. Bxf6
{[%clk 0:00:06.5]} 51... Rh3+ {[%clk 0:00:31.6]} 52. Kf4 {[%clk 0:00:07.1]}
52... Kf7 {[%clk 0:00:30.5]} 53. Ke5 {[%clk 0:00:06.2]} 53... Rd3 {[%clk
0:00:23]} 54. Rxd3 {[%clk 0:00:03.9]} 54... Bxd3 {[%clk 0:00:22.9]} 55. Bh4
{[%clk 0:00:04.8]} 55... Ke8 {[%clk 0:00:20.2]} 56. Bg5 {[%clk 0:00:03.1]} 56...
Kd7 {[%clk 0:00:19.6]} 57. Kd4 {[%clk 0:00:03.6]} 57... Be4 {[%clk 0:00:19.6]}
58. Ke5 {[%clk 0:00:04.2]} 58... Kc6 {[%clk 0:00:19.4]} 59. Kd4 {[%clk
0:00:04.8]} 59... Kd6 {[%clk 0:00:19.7]} 60. Bf4+ {[%clk 0:00:03.7]} 60... Ke6
{[%clk 0:00:19.5]} 61. Bg5 {[%clk 0:00:04.3]} 61... Kf7 {[%clk 0:00:19.8]} 62.
Ke5 {[%clk 0:00:04]} 62... Kg6 {[%clk 0:00:20.4]} 63. Bh4 {[%clk 0:00:04.5]}
63... Bf3 {[%clk 0:00:18.9]} 64. b4 {[%clk 0:00:04.7]} 64... Be4 {[%clk
0:00:17.7]} 65. Kf4 {[%clk 0:00:05.2]} 65... Kf7 {[%clk 0:00:18]} 66. Ke5 {[%clk
0:00:05.8]} 66... Ke8 {[%clk 0:00:18.3]} 67. Bg5 {[%clk 0:00:06.1]} 67... Kd7
{[%clk 0:00:18.7]} 68. Bh4 {[%clk 0:00:06.1]} 68... Kc6 {[%clk 0:00:19.6]} 69.
Kd4 {[%clk 0:00:06.3]} 69... Kb5 {[%clk 0:00:20]} 70. Kc3 {[%clk 0:00:05.7]}
70... Ka4 {[%clk 0:00:20.5]} 71. Kb2 {[%clk 0:00:06.1]} 71... f4 {[%clk
0:00:20.9]} 72. Be1 {[%clk 0:00:04.7]} 72... f3 {[%clk 0:00:21.2]} 73. Bf2
{[%clk 0:00:05.2]} 73... Kb5 {[%clk 0:00:20.8]} 74. Kc3 {[%clk 0:00:05.7]} 74...
Bd5 {[%clk 0:00:19.8]} 75. Kd4 {[%clk 0:00:05.3]} 75... Bc6 {[%clk 0:00:19.8]}
76. Kc3 {[%clk 0:00:04.8]} 76... a5 {[%clk 0:00:19.4]} 77. bxa5 {[%clk
0:00:04.6]} 77... Kxa5 {[%clk 0:00:19.2]} 78. Kb2 {[%clk 0:00:04.7]} 78... Kb5
{[%clk 0:00:19.6]} 79. Kc3 {[%clk 0:00:05.2]} 79... Ka4 {[%clk 0:00:18.9]} 80.
Kb2 {[%clk 0:00:05.6]} 80... Kb5 {[%clk 0:00:17.9]} 81. Kc3 {[%clk 0:00:06]}
81... Ka6 {[%clk 0:00:18.1]} 82. Kb4 {[%clk 0:00:06.2]} 82... Be4 {[%clk
0:00:17.2]} 83. Kc4 {[%clk 0:00:04.7]} 83... b6 {[%clk 0:00:15.9]} 84. Kb4
{[%clk 0:00:04.9]} 84... Bc6 {[%clk 0:00:16.1]} 85. Kc4 {[%clk 0:00:04.9]} 85...
Kb7 {[%clk 0:00:17]} 86. Kd4 {[%clk 0:00:04.7]} 86... Kc7 {[%clk 0:00:17.6]} 87.
Ke5 {[%clk 0:00:04.8]} 87... Kd7 {[%clk 0:00:17.7]} 88. Bh4 {[%clk 0:00:04.2]}
88... Ke8 {[%clk 0:00:15.3]} 89. Ke6 {[%clk 0:00:03.1]} 89... Ba4 {[%clk
0:00:11.8]} 90. Kd6 {[%clk 0:00:02.9]} 90... Kf7 {[%clk 0:00:10.7]} 91. Ke5
{[%clk 0:00:03.5]} 91... Kg6 {[%clk 0:00:10.9]} 92. Kf4 {[%clk 0:00:04]} 92...
Bc6 {[%clk 0:00:10.6]} 93. Ke5 {[%clk 0:00:04.6]} 93... Ba8 {[%clk 0:00:10.3]}
94. Kf4 {[%clk 0:00:05]} 94... Bb7 {[%clk 0:00:09.4]} 95. Ke5 {[%clk 0:00:05.4]}
95... Kf7 {[%clk 0:00:09.7]} 96. Bf2 {[%clk 0:00:05]} 96... Ba8 {[%clk
0:00:08.4]} 97. Kf4 {[%clk 0:00:03]} 97... Ke6 {[%clk 0:00:07.5]} 98. Bxb6
{[%clk 0:00:03.2]} 98... Kd5 {[%clk 0:00:04.8]} 99. Bf2 {[%clk 0:00:03.1]} 99...
Kc4 {[%clk 0:00:04.9]} 100. Be1 {[%clk 0:00:02.4]} 100... Kd3 {[%clk 0:00:05]}
101. a4 {[%clk 0:00:02.3]} 101... Ke2 {[%clk 0:00:05.3]} 102. Bh4 {[%clk
0:00:02.3]} 102... f2 {[%clk 0:00:02.4]} 103. Bxf2 {[%clk 0:00:02.7]} 103...
Kxf2 {[%clk 0:00:03.3]} 104. Kg5 {[%clk 0:00:03.6]} 104... Bf3 {[%clk
0:00:02.8]} 105. Kh4 {[%clk 0:00:03.6]} 105... Kg2 {[%clk 0:00:03]} 106. a5
{[%clk 0:00:04.2]} 106... Kf2 {[%clk 0:00:03.5]} 107. a6 {[%clk 0:00:04.8]}
107... Ke3 {[%clk 0:00:03.5]} 108. a7 {[%clk 0:00:05.4]} 108... Ba8 {[%clk
0:00:04.3]} 109. Kxh5 {[%clk 0:00:04.9]} 109... Kd4 {[%clk 0:00:05.2]} 110. Kg5
{[%clk 0:00:05.7]} 110... Kc5 {[%clk 0:00:06.1]} 111. Kf6 {[%clk 0:00:06.6]}
111... Kb6 {[%clk 0:00:06.6]} 112. Ke7 {[%clk 0:00:07.5]} 112... Kxa7 {[%clk
0:00:07.3]} 1/2-1/2

[Event "Late-Titled-Tuesday-Blitz-January-16-2024"]
[Site "Chess.com"]
[Date "2024.01.16"]
[Round "2"]
[White "Pachonpower"]
[Black "a_kandil"]
[Result "1-0"]
[WhiteElo "2275"]
[BlackElo "2502"]
[TimeControl "180+1"]
[EndTime "14:12:12 PST"]
[Termination "Pachonpower won by resignation"]

1. d4 {[%clk 0:02:58.1]} 1... Nf6 {[%clk 0:02:59.8]} 2. Nf3 {[%clk 0:02:59]}
2... g6 {[%clk 0:02:59.9]} 3. Nc3 {[%clk 0:02:57.9]} 3... d5 {[%clk 0:02:59.2]}
4. Bf4 {[%clk 0:02:57.3]} 4... c5 {[%clk 0:02:58.7]} 5. e3 {[%clk 0:02:54.6]}
5... Bg7 {[%clk 0:02:58.7]} 6. Qd2 {[%clk 0:02:50.4]} 6... O-O {[%clk
0:02:58.4]} 7. O-O-O {[%clk 0:02:49.6]} 7... c4 {[%clk 0:02:55.1]} 8. h4 {[%clk
0:02:47.7]} 8... h5 {[%clk 0:02:52.6]} 9. Ne5 {[%clk 0:02:47.8]} 9... Nc6 {[%clk
0:02:50.9]} 10. e4 {[%clk 0:02:45.6]} 10... Nxe4 {[%clk 0:02:40.2]} 11. Nxe4
{[%clk 0:02:45]} 11... dxe4 {[%clk 0:02:41.1]} 12. Nxc6 {[%clk 0:02:41.6]} 12...
bxc6 {[%clk 0:02:32.7]} 13. Bxc4 {[%clk 0:02:42.2]} 13... Qa5 {[%clk 0:02:27.6]}
14. Qxa5 {[%clk 0:02:39.6]} 1-0

[Event "Late-Titled-Tuesday-Blitz-January-16-2024"]
[Site "Chess.com"]
[Date "2024.01.16"]
[Round "2"]
[White "nikitadovbnya2008"]
[Black "Arteler"]
[Result "1-0"]
[WhiteElo "2243"]
[BlackElo "2477"]
[TimeControl "180+1"]
[EndTime "14:12:40 PST"]
[Termination "nikitadovbnya2008 won by resignation"]

1. d4 {[%clk 0:03:00.9]} 1... c5 {[%clk 0:02:57.3]} 2. d5 {[%clk 0:03:00.9]}
2... f5 {[%clk 0:02:58]} 3. c4 {[%clk 0:03:00.8]} 3... Nf6 {[%clk 0:02:58.5]} 4.
Nc3 {[%clk 0:03:01.6]} 4... g6 {[%clk 0:02:59]} 5. h4 {[%clk 0:03:02.2]} 5...
Bg7 {[%clk 0:02:58.9]} 6. h5 {[%clk 0:03:02.9]} 6... Nxh5 {[%clk 0:02:58.9]} 7.
e4 {[%clk 0:03:03.1]} 7... fxe4 {[%clk 0:02:58]} 8. Rxh5 {[%clk 0:03:02.8]} 8...
gxh5 {[%clk 0:02:53.9]} 9. Qxh5+ {[%clk 0:03:03.7]} 9... Kf8 {[%clk 0:02:54.2]}
10. d6 {[%clk 0:02:38.5]} 10... e6 {[%clk 0:02:30.2]} 11. Bg5 {[%clk 0:02:20.6]}
11... Bxc3+ {[%clk 0:02:18]} 12. bxc3 {[%clk 0:02:17.4]} 12... Qe8 {[%clk
0:02:18.9]} 13. Bh6+ {[%clk 0:02:15.1]} 1-0